fUST/lending_fUST_20240711
["ID","MTS","AMOUNT","RATE_DAILY","PERIOD"]
[331688671,1720644572234,-261.599947,0.00021096,2]
[331688672,1720644573433,-3000.0,0.00021904,2]
[331688673,1720644573455,-403.6290569,0.00021917,2]
[331688674,1720644573475,-154.68290005,0.00021917,2]
[331688675,1720644573494,-286.97734619,0.0002243,2]
[331688676,1720644573514,-293.46281805,0.0002243,2]
[331688677,1720644573534,-360.461148,0.00022689,2]
[331688678,1720644573554,-861.8864714,0.00022715,2]
[331688679,1720644573577,-182.09760218,0.00022941,2]
[331688680,1720644573596,-154.89916417,0.00022943,2]
[331688681,1720644573617,-368.57284336,0.00022943,2]
[331688682,1720644573640,-587.0,0.00023188,2]
[331688683,1720644573661,-24830.38801427,0.0002323,2]
[331688684,1720644573682,-1463.29635585,0.0002323,2]
[331688685,1720644573703,-823.3156275,0.00023696,2]
[331688686,1720644573723,-150.0,0.000239,2]
[331688687,1720644573747,-380.0,0.00024658,2]
[331688688,1720644573885,40.89670109,0.0002313,2]
[331688752,1720644631962,-197.33907868,0.00019069,2]
[331688754,1720644631972,-154.69833824,0.00021095,2]
[331688756,1720644631982,-351.72622658,0.0002313,2]
[331688761,1720644632016,-681.44154062,0.0002313,2]
[331688763,1720644632026,-476.1462861,0.0002323,2]
[331688765,1720644632036,-383.94934095,0.0002323,2]
[331688767,1720644632046,-3773.09344064,0.0002323,2]
[331688769,1720644632056,-390.6256484,0.00023594,2]
[331688771,1720644632066,-1634.59229075,0.0002448,2]
[331688773,1720644632076,-166.666666,0.00024782,2]
[331688774,1720644632086,-300.0,0.00025003,2]
[331688775,1720644632095,-24900.0,0.00025004,2]
[331688777,1720644632105,-4933.6299768,0.00025136,2]
[331688778,1720644632115,-1074.06446822,0.00025247,2]
[331688780,1720644632125,-166.666666,0.00025457,2]
[331688782,1720644632135,-162.76,0.00025481,3]
[331688784,1720644632144,-488.32,0.00025481,3]
[331688785,1720644632153,-6782.35,0.00025481,3]
[331688787,1720644632163,-5651.96,0.00025481,3]
[331688789,1720644632172,-71268.2760913,0.00025491,3]
[331688791,1720644632182,-964.86306867,0.00025501,2]
[331688835,1720644637904,-455.97993761,0.00025401,2]
[331688836,1720644637916,-29035.13693133,0.00025501,2]
[331688837,1720644637928,-166.666666,0.00026133,2]
[331688838,1720644637938,-7458.94652043,0.0002649,2]
[331688839,1720644637950,-3078.51196359,0.00026574,2]
[331688840,1720644637960,-4353.24468485,0.00026748,2]
[331688841,1720644637970,-166.666666,0.00026809,2]
[331688842,1720644637982,-325.52,0.00026851,3]
[331688843,1720644637993,-1992.5444692,0.00027184,5]
[331688844,1720644638004,-318.82736005,0.00027194,2]
[331688845,1720644638015,-261.599947,0.00027195,2]
[331688846,1720644638026,-808.8959611,0.00027321,2]
[331688847,1720644638037,-1074.06446822,0.00027365,2]
[331688848,1720644638048,-158.527152,0.00027397,120]
[331688849,1720644638059,-4709.97,0.0002748,3]
[331688850,1720644638070,-166.666666,0.00027484,2]
[331688851,1720644638081,-500.0,0.00027489,2]
[331688852,1720644638093,-500.0,0.00027489,2]
[331688853,1720644638104,-488.58443603,0.00027489,2]
[331688854,1720644638115,-422.2563901,0.00027489,2]
[331688855,1720644638127,-637.17140214,0.00027489,2]
[331688856,1720644638139,-500.0,0.00027489,2]
[331688857,1720644638150,-500.0,0.00027489,2]
[331688858,1720644638161,-500.0,0.00027489,2]
[331688859,1720644638173,-500.0,0.00027489,2]
[331688860,1720644638184,-500.0,0.00027489,2]
[331688861,1720644638195,-500.0,0.00027489,2]
[331688862,1720644638207,-500.0,0.00027489,2]
[331688863,1720644638218,-500.0,0.00027489,2]
[331688864,1720644638229,-500.0,0.00027489,2]
[331688865,1720644638241,-500.0,0.00027489,2]
[331688866,1720644638252,-500.0,0.00027489,2]
[331688867,1720644638263,-500.0,0.00027489,2]
[331688868,1720644638275,-500.0,0.00027489,2]
[331688869,1720644638286,-500.0,0.00027489,2]
[331688870,1720644638298,-500.0,0.00027489,2]
[331688871,1720644638309,-500.0,0.00027489,2]
[331688872,1720644638321,-500.0,0.00027489,2]
[331688873,1720644638332,-500.0,0.00027489,2]
[331688874,1720644638344,-500.0,0.00027489,2]
[331688875,1720644638355,-500.0,0.00027489,2]
[331688876,1720644638366,-500.0,0.00027489,2]
[331688877,1720644638379,-500.0,0.00027489,2]
[331688878,1720644638393,-500.0,0.00027489,2]
[331688879,1720644638404,-500.0,0.00027489,2]
[331688880,1720644638415,-500.0,0.00027489,2]
[331688881,1720644638427,-500.0,0.00027489,2]
[331688882,1720644638438,-500.0,0.00027489,2]
[331688883,1720644638449,-500.0,0.00027489,2]
[331688884,1720644638461,-500.0,0.00027489,2]
[331688885,1720644638473,-500.0,0.00027489,2]
[331688886,1720644638485,-500.0,0.00027489,2]
[331688887,1720644638496,-500.0,0.00027489,2]
[331688888,1720644638508,-500.0,0.00027489,2]
[331688889,1720644638520,-500.0,0.00027489,2]
[331688890,1720644638532,-500.0,0.00027489,2]
[331688891,1720644638543,-500.0,0.00027489,2]
[331688892,1720644638552,-500.0,0.00027489,2]
[331688893,1720644638562,-500.0,0.00027489,2]
[331688894,1720644638572,-500.0,0.00027489,2]
[331688895,1720644638581,-500.0,0.00027489,2]
[331688896,1720644638591,-500.0,0.00027489,2]
[331688897,1720644638600,-500.0,0.00027489,2]
[331688898,1720644638768,-500.0,0.00027489,2]
[331688899,1720644638783,-500.0,0.00027489,2]
[331688900,1720644638792,-591.24165476,0.00027489,2]
[331688901,1720644638802,-500.0,0.00027489,2]
[331688902,1720644638811,-71268.2760913,0.0002749,3]
[331688903,1720644638820,-933.15827,0.0002749,7]
[331688904,1720644638829,-797.963113,0.0002749,7]
[331688905,1720644638838,-933.15827,0.0002749,7]
[331688906,1720644638848,-797.963113,0.0002749,7]
[331688907,1720644638857,-209.343788,0.0002749,7]
[331688908,1720644638866,-151.0,0.0002749,7]
[331688909,1720644638875,-209.343788,0.0002749,7]
[331688910,1720644638884,-151.0,0.0002749,7]
[331688911,1720644638894,-43664.05653873,0.000275,2]
[331688912,1720644638903,-420.0,0.00027503,2]
[331688913,1720644638913,-162.258131,0.00027851,2]
[331688914,1720644638923,-1343.96727085,0.000279,2]
[331688915,1720644638932,-166.666666,0.0002816,2]
[331688916,1720644638942,-4353.24468484,0.00028167,2]
[331688917,1720644638951,-933.15827,0.00028641,7]
[331688918,1720644638960,-797.963113,0.00028641,7]
[331688919,1720644638970,-933.15827,0.00028641,7]
[331688920,1720644638979,-797.963113,0.00028641,7]
[331688921,1720644638989,-209.343788,0.00028641,7]
[331688922,1720644638998,-151.0,0.00028641,7]
[331688923,1720644639008,-209.343788,0.00028641,7]
[331688924,1720644639018,-151.0,0.00028641,7]
[331688925,1720644639028,-759.409678,0.00028641,7]
[331688926,1720644639037,-71268.2760913,0.00028641,3]
[331688927,1720644639047,-250.0,0.00028683,2]
[331688928,1720644639056,-629.44479806,0.00028687,2]
[331688929,1720644639068,-453.22022894,0.00029,2]
[331688930,1720644639077,-1074.06446822,0.00029482,2]
[331688931,1720644639087,-4353.24468484,0.00029587,2]
[331688932,1720644639096,-229.22032487,0.00029772,2]
[331688933,1720644639106,-240.12803383,0.00029793,2]
[331688934,1720644639116,-155.43553926,0.00029803,2]
[331688935,1720644639126,-353.61737607,0.00029813,2]
[331688936,1720644639135,-2132.45671248,0.00029861,2]
[331688937,1720644639145,-352.12250544,0.00029861,2]
[331688938,1720644639154,-268.65851187,0.00029861,2]
[331688939,1720644639164,-2420.55776569,0.00029861,2]
[331688940,1720644639173,-248.64981385,0.0002987,2]
[331688941,1720644639182,-662.40219375,0.00029879,2]
[331688942,1720644639192,-1105.86744094,0.00029901,2]
[331688943,1720644639201,-1434.44237247,0.00029904,2]
[331688944,1720644639211,-1987.94718132,0.00029979,2]
[331688945,1720644639221,-885.90879381,0.00029999,2]
[331688946,1720644639230,-232.67902139,0.0003,4]
[331688947,1720644639240,-154.55950541,0.0003,4]
[331688948,1720644639249,-620.4722399,0.00030121,2]
[331688949,1720644639258,-587.0,0.00030253,2]
[331688950,1720644639266,-933.15827,0.00030879,7]
[331688951,1720644639274,-797.963113,0.00030879,7]
[331688952,1720644639282,-933.15827,0.00030879,7]
[331688953,1720644639292,-797.963113,0.00030879,7]
[331688954,1720644639301,-209.343788,0.00030879,7]
[331688955,1720644639311,-151.0,0.00030879,7]
[331688956,1720644639320,-209.343788,0.00030879,7]
[331688957,1720644639330,-151.0,0.00030879,7]
[331688958,1720644639340,-759.409678,0.00030879,7]
[331688959,1720644639350,-65724.43784583,0.00030879,4]
[331689005,1720644641597,-2659.9111634,0.00028036,2]
[331689007,1720644641606,-227.836502,0.00028641,7]
[331689009,1720644641615,-759.409678,0.00028641,7]
[331689011,1720644641624,-227.836502,0.00030879,7]
[331689012,1720644641633,-759.409678,0.00030879,7]
[331689015,1720644641644,-5543.83824547,0.00030879,4]
[331689016,1720644641653,-151.0,0.00030899,7]
[331689019,1720644641664,-151.0,0.00030899,7]
[331689021,1720644641674,-151.0,0.00030899,7]
[331689023,1720644641684,-4353.24468484,0.00031006,2]
[331689025,1720644641693,-3468.538006,0.00031514,7]
[331689028,1720644641703,-3468.538006,0.00031514,7]
[331689031,1720644641714,-151.0,0.00031514,7]
[331689034,1720644641723,-366.6405652,0.00031574,2]
[331689037,1720644641732,-5292.88975486,0.00031588,2]
[331689039,1720644641742,-1074.06446822,0.000316,2]
[331689041,1720644641751,-620.023612,0.00031627,2]
[331689043,1720644641761,-150.0,0.00031721,2]
[331689045,1720644641771,-153.0,0.00031726,2]
[331689047,1720644641780,-306.0,0.00032247,2]
[331689049,1720644641790,-153.0,0.00032274,2]
[331689051,1720644641799,-153.0,0.00032274,2]
[331689053,1720644641810,-219.01835997,0.00032314,2]
[331689055,1720644641819,-500.0,0.00032314,2]
[331689057,1720644641829,-500.0,0.00032314,2]
[331689059,1720644641838,-500.0,0.00032314,2]
[331689061,1720644641847,-544.22989469,0.00032314,2]
[331689063,1720644641857,-297.65032274,0.00032314,2]
[331689065,1720644641867,-500.0,0.00032314,2]
[331689067,1720644641876,-341.11664234,0.00032314,2]
[331689069,1720644641885,-500.0,0.00032314,2]
[331689071,1720644641895,-500.0,0.00032314,2]
[331689073,1720644641904,-500.0,0.00032314,2]
[331689075,1720644641913,-500.0,0.00032314,2]
[331689077,1720644641922,-500.0,0.00032314,2]
[331689079,1720644641931,-500.0,0.00032314,2]
[331689081,1720644641941,-500.0,0.00032314,2]
[331689083,1720644641950,-88888.0,0.00032315,5]
[331689085,1720644641959,-933.15827,0.00032315,7]
[331689087,1720644641969,-797.963113,0.00032315,7]
[331689089,1720644641979,-933.15827,0.00032315,7]
[331689091,1720644641989,-797.963113,0.00032315,7]
[331689093,1720644641999,-209.343788,0.00032315,7]
[331689095,1720644642008,-151.0,0.00032315,7]
[331689097,1720644642017,-209.343788,0.00032315,7]
[331689099,1720644642027,-151.0,0.00032315,7]
[331689101,1720644642036,-759.409678,0.00032315,7]
[331689103,1720644642046,-227.836502,0.00032315,7]
[331689105,1720644642055,-933.15827,0.00032373,7]
[331689106,1720644642065,-797.963113,0.00032373,7]
[331689108,1720644642074,-933.15827,0.00032373,7]
[331689110,1720644642083,-797.963113,0.00032373,7]
[331689112,1720644642092,-209.343788,0.00032373,7]
[331689114,1720644642101,-151.0,0.00032373,7]
[331689115,1720644642111,-209.343788,0.00032373,7]
[331689116,1720644642120,-248.400334,0.00032373,7]
[331689117,1720644642130,-759.409678,0.00032373,7]
[331689118,1720644642140,-227.836502,0.00032373,7]
[331689119,1720644642149,-11007.15529403,0.00032373,5]
[331689120,1720644642158,-71268.2760913,0.00032374,4]
[331689121,1720644642168,-151.0,0.00032395,7]
[331689122,1720644642177,-151.0,0.00032395,7]
[331689123,1720644642186,-151.0,0.00032395,7]
[331689124,1720644642196,-151.0,0.00032395,7]
[331689125,1720644642205,-152.197614,0.00032395,7]
[331689126,1720644642214,-151.0,0.00032395,7]
[331689127,1720644642224,-151.0,0.00032395,7]
[331689128,1720644642234,-289.179235,0.00032395,7]
[331689129,1720644642244,-449.955,0.00032395,7]
[331689130,1720644642253,-449.955,0.00032395,7]
[331689131,1720644642263,-151.0,0.00032395,7]
[331689132,1720644642273,-151.0,0.00032395,2]
[331689133,1720644642283,-266.438994,0.00032395,7]
[331689134,1720644642292,-266.438994,0.00032395,7]
[331689135,1720644642302,-151.0,0.00032395,7]
[331689137,1720644642311,-190.891739,0.00032395,7]
[331689139,1720644642320,-190.891739,0.00032395,7]
[331689140,1720644642330,-151.0,0.00032404,7]
[331689142,1720644642340,-151.0,0.00032404,7]
[331689144,1720644642349,-151.0,0.00032404,7]
[331689146,1720644642359,-151.0,0.00032404,7]
[331689148,1720644642368,-151.0,0.00032404,2]
[331689150,1720644642378,-948.570453,0.00032404,7]
[331689152,1720644642388,-151.0,0.00032404,2]
[331689154,1720644642397,-948.570453,0.00032404,7]
[331689156,1720644642406,-151.0,0.00032404,7]
[331689158,1720644642415,-151.0,0.00032404,7]
[331689160,1720644642424,-151.0,0.00032404,7]
[331689162,1720644642434,-151.0,0.00032404,7]
[331689164,1720644642444,-151.0,0.00032404,7]
[331689166,1720644642454,-167.763916,0.00032404,7]
[331689169,1720644642465,-167.763916,0.00032404,7]
[331689172,1720644642475,-478.091984,0.00032404,7]
[331689174,1720644642485,-478.091984,0.00032404,7]
[331689176,1720644642494,-151.0,0.00032404,7]
[331689178,1720644642504,-2532.894488,0.00032404,7]
[331689180,1720644642514,-2532.894488,0.00032404,7]
[331689183,1720644642524,-3468.538006,0.00032404,7]
[331689185,1720644642533,-3468.538006,0.00032404,7]
[331689187,1720644642543,-151.0,0.00032404,7]
[331689188,1720644642551,-151.0,0.00032405,7]
[331689190,1720644642561,-151.0,0.00032405,7]
[331689192,1720644642570,-168.431377,0.00032405,7]
[331689194,1720644642580,-151.0,0.00032415,7]
[331689196,1720644642590,-151.0,0.00032415,7]
[331689198,1720644642600,-151.0,0.00032415,7]
[331689201,1720644642610,-151.0,0.00032415,7]
[331689204,1720644642619,-163.177901,0.00032415,7]
[331689207,1720644642629,-151.0,0.00032415,7]
[331689210,1720644642639,-151.0,0.00032415,7]
[331689213,1720644642648,-151.0,0.00032415,7]
[331689216,1720644642660,-151.0,0.00032415,7]
[331689218,1720644642669,-151.0,0.00032415,2]
[331689220,1720644642679,-948.570453,0.00032415,7]
[331689222,1720644642688,-151.0,0.00032415,2]
[331689224,1720644642699,-948.570453,0.00032415,7]
[331689226,1720644642708,-151.0,0.00032415,7]
[331689228,1720644642717,-151.0,0.00032415,7]
[331689230,1720644642727,-151.0,0.00032415,7]
[331689233,1720644642737,-151.0,0.00032415,7]
[331689234,1720644642746,-151.0,0.00032415,7]
[331689237,1720644642757,-167.763916,0.00032415,7]
[331689238,1720644642767,-167.763916,0.00032415,7]
[331689240,1720644642776,-478.091984,0.00032415,7]
[331689241,1720644642785,-478.091984,0.00032415,7]
[331689242,1720644642794,-151.0,0.00032415,7]
[331689243,1720644642804,-449.955,0.00032415,7]
[331689244,1720644642813,-2532.894488,0.00032415,7]
[331689245,1720644642822,-165.895504,0.00032415,7]
[331689246,1720644642832,-449.955,0.00032415,7]
[331689247,1720644642841,-2532.894488,0.00032415,7]
[331689248,1720644642850,-151.0,0.00032415,2]
[331689249,1720644642860,-3468.538006,0.00032415,7]
[331689250,1720644642870,-3468.538006,0.00032415,7]
[331689251,1720644642880,-266.438994,0.00032415,7]
[331689252,1720644642889,-266.438994,0.00032415,7]
[331689253,1720644642898,-151.0,0.00032415,7]
[331689254,1720644642908,-151.0,0.00032415,7]
[331689255,1720644642918,-190.891739,0.00032415,7]
[331689256,1720644642927,-190.891739,0.00032415,7]
[331689257,1720644642936,-725.55474896,0.00032425,2]
[331689258,1720644642945,-223.765773,0.00032425,7]
[331689259,1720644642954,-4353.24468484,0.00032425,2]
[331689260,1720644642965,-3000.0,0.000325,12]
[331689261,1720644642974,-3468.538006,0.00032505,7]
[331689262,1720644642983,-3468.538006,0.00032505,7]
[331689263,1720644642994,-151.0,0.00032505,7]
[331689264,1720644643003,-933.15827,0.00032505,7]
[331689265,1720644643012,-797.963113,0.00032505,7]
[331689266,1720644643024,-933.15827,0.00032505,7]
[331689267,1720644643033,-797.963113,0.00032505,7]
[331689268,1720644643042,-209.343788,0.00032505,7]
[331689269,1720644643051,-151.0,0.00032505,7]
[331689270,1720644643060,-209.343788,0.00032505,7]
[331689271,1720644643069,-3000.0,0.0003251,12]
[331689272,1720644643078,-151.0,0.0003251,7]
[331689273,1720644643088,-151.0,0.0003251,7]
[331689274,1720644643097,-151.0,0.0003251,7]
[331689275,1720644643107,-151.0,0.0003251,7]
[331689276,1720644643116,-151.0,0.0003251,7]
[331689277,1720644643125,-151.0,0.0003251,2]
[331689278,1720644643134,-948.570453,0.0003251,7]
[331689279,1720644643144,-151.0,0.0003251,2]
[331689280,1720644643152,-948.570453,0.0003251,7]
[331689281,1720644643162,-151.0,0.0003251,7]
[331689282,1720644643171,-151.0,0.0003251,7]
[331689283,1720644643181,-151.0,0.0003251,7]
[331689284,1720644643190,-159.149849,0.0003251,7]
[331689285,1720644643199,-167.763916,0.0003251,7]
[331689286,1720644643208,-167.763916,0.0003251,7]
[331689287,1720644643218,-478.091984,0.0003251,7]
[331689288,1720644643227,-478.091984,0.0003251,7]
[331689289,1720644643236,-151.0,0.0003251,7]
[331689290,1720644643246,-449.955,0.0003251,7]
[331689291,1720644643255,-2532.894488,0.0003251,7]
[331689292,1720644643264,-449.955,0.0003251,7]
[331689293,1720644643274,-2532.894488,0.0003251,7]
[331689294,1720644643283,-151.0,0.0003251,2]
[331689295,1720644643292,-266.438994,0.0003251,7]
[331689296,1720644643301,-266.438994,0.0003251,7]
[331689297,1720644643311,-151.0,0.0003251,7]
[331689298,1720644643321,-190.891739,0.0003251,7]
[331689299,1720644643330,-190.891739,0.0003251,7]
[331689300,1720644643340,-759.409678,0.0003251,7]
[331689301,1720644643349,-227.836502,0.0003251,7]
[331689302,1720644643359,-151.0,0.00032515,7]
[331689303,1720644643368,-190.115878,0.00032515,7]
[331689304,1720644643377,-190.115878,0.00032515,7]
[331689305,1720644643387,-151.0,0.00032515,7]
[331689306,1720644643396,-151.0,0.00032515,7]
[331689307,1720644643405,-151.0,0.00032515,7]
[331689308,1720644643415,-151.0,0.00032515,7]
[331689309,1720644643531,-151.0,0.00032515,2]
[331689310,1720644643541,-948.570453,0.00032515,7]
[331689311,1720644643551,-151.0,0.00032515,2]
[331689312,1720644643560,-948.570453,0.00032515,7]
[331689313,1720644643569,-151.0,0.00032515,7]
[331689314,1720644643578,-151.438995,0.00032515,7]
[331689315,1720644643588,-160.1527,0.00032515,7]
[331689316,1720644643598,-167.763916,0.00032515,7]
[331689317,1720644643607,-167.763916,0.00032515,7]
[331689319,1720644643617,-478.091984,0.00032515,7]
[331689321,1720644643626,-478.091984,0.00032515,7]
[331689322,1720644643635,-151.0,0.00032515,7]
[331689324,1720644643645,-449.955,0.00032515,7]
[331689326,1720644643654,-2532.894488,0.00032515,7]
[331689328,1720644643664,-449.955,0.00032515,7]
[331689330,1720644643675,-2532.894488,0.00032515,7]
[331689332,1720644643684,-151.0,0.00032515,2]
[331689333,1720644643693,-3468.538006,0.00032515,7]
[331689334,1720644643702,-3468.538006,0.00032515,7]
[331689335,1720644643712,-266.438994,0.00032515,7]
[331689336,1720644643721,-266.438994,0.00032515,7]
[331689338,1720644643730,-151.0,0.00032515,7]
[331689340,1720644643739,-151.0,0.00032515,7]
[331689341,1720644643748,-190.891739,0.00032515,7]
[331689342,1720644643757,-190.891739,0.00032515,7]
[331689343,1720644643767,-3000.0,0.0003252,12]
[331689344,1720644643776,-306.0,0.00032521,2]
[331689345,1720644643785,-167995.11630994,0.00032525,3]
[331689346,1720644643794,-2000.0,0.00032525,4]
[331689347,1720644643803,-284.6000077,0.00032525,3]
[331689348,1720644643812,-5611.49557264,0.00032525,4]
[331689349,1720644643821,-151.0,0.00032525,7]
[331689350,1720644643830,-151.0,0.00032525,7]
[331689351,1720644643839,-151.0,0.00032525,7]
[331689352,1720644643849,-163.871449,0.00032525,7]
[331689353,1720644643858,-190.115878,0.00032525,7]
[331689354,1720644643867,-190.115878,0.00032525,7]
[331689355,1720644643876,-190.115878,0.00032525,7]
[331689356,1720644643885,-190.115878,0.00032525,7]
[331689357,1720644643894,-178.26724409,0.00032525,7]
[331689358,1720644643903,-151.0,0.00032525,7]
[331689359,1720644643912,-151.0,0.00032525,7]
[331689360,1720644643921,-151.0,0.00032525,7]
[331689361,1720644643930,-151.0,0.00032525,7]
[331689362,1720644643939,-151.0,0.00032525,2]
[331689363,1720644643948,-948.570453,0.00032525,7]
[331689364,1720644643957,-151.0,0.00032525,2]
[331689365,1720644643966,-948.570453,0.00032525,7]
[331689366,1720644643975,-151.0,0.00032525,7]
[331689367,1720644643985,-167.763916,0.00032525,7]
[331689368,1720644643994,-167.763916,0.00032525,7]
[331689369,1720644644002,-478.091984,0.00032525,7]
[331689370,1720644644011,-478.091984,0.00032525,7]
[331689371,1720644644020,-160.885505,0.00032525,7]
[331689372,1720644644029,-449.955,0.00032525,7]
[331689373,1720644644038,-2532.894488,0.00032525,7]
[331689374,1720644644047,-449.955,0.00032525,7]
[331689375,1720644644056,-2532.894488,0.00032525,7]
[331689376,1720644644065,-243.768511,0.00032525,2]
[331689377,1720644644074,-3468.538006,0.00032525,7]
[331689378,1720644644083,-3468.538006,0.00032525,7]
[331689379,1720644644092,-266.438994,0.00032525,7]
[331689380,1720644644101,-266.438994,0.00032525,7]
[331689381,1720644644111,-151.0,0.00032525,7]
[331689382,1720644644120,-190.891739,0.00032525,7]
[331689383,1720644644129,-190.891739,0.00032525,7]
[331689384,1720644644139,-933.15827,0.00032525,7]
[331689385,1720644644147,-797.963113,0.00032525,7]
[331689386,1720644644156,-933.15827,0.00032525,7]
[331689387,1720644644166,-797.963113,0.00032525,7]
[331689388,1720644644175,-209.343788,0.00032525,7]
[331689389,1720644644184,-151.0,0.00032525,7]
[331689390,1720644644193,-209.343788,0.00032525,7]
[331689391,1720644644202,-759.409678,0.00032525,7]
[331689392,1720644644211,-227.836502,0.00032525,7]
[331689393,1720644644220,-3000.0,0.0003253,12]
[331689394,1720644644230,-190.115878,0.00032535,7]
[331689395,1720644644239,-190.115878,0.00032535,7]
[331689396,1720644644248,-3000.0,0.0003254,12]
[331689397,1720644644257,-3000.0,0.0003255,12]
[331689398,1720644644266,-3000.0,0.0003256,12]
[331689399,1720644644275,-3000.0,0.0003257,12]
[331689400,1720644644285,-3000.0,0.0003258,12]
[331689401,1720644644294,-151.0,0.0003258,7]
[331689402,1720644644303,-151.0,0.0003258,7]
[331689403,1720644644313,-151.0,0.0003258,7]
[331689404,1720644644323,-151.0,0.0003258,2]
[331689405,1720644644332,-948.570453,0.0003258,7]
[331689406,1720644644341,-151.0,0.0003258,2]
[331689407,1720644644350,-948.570453,0.0003258,7]
[331689408,1720644644360,-449.955,0.0003258,7]
[331689409,1720644644369,-449.955,0.0003258,7]
[331689410,1720644644378,-3468.538006,0.0003258,7]
[331689411,1720644644388,-3468.538006,0.0003258,7]
[331689412,1720644644397,-266.438994,0.0003258,7]
[331689413,1720644644406,-266.438994,0.0003258,7]
[331689414,1720644644415,-151.0,0.0003258,7]
[331689415,1720644644425,-190.891739,0.0003258,7]
[331689416,1720644644434,-190.891739,0.0003258,7]
[331689417,1720644644443,-933.15827,0.0003258,7]
[331689418,1720644644453,-797.963113,0.0003258,7]
[331689419,1720644644462,-933.15827,0.0003258,7]
[331689420,1720644644472,-797.963113,0.0003258,7]
[331689421,1720644644481,-209.343788,0.0003258,7]
[331689422,1720644644490,-151.0,0.0003258,7]
[331689423,1720644644499,-209.343788,0.0003258,7]
[331689424,1720644644508,-3000.0,0.0003259,12]
[331689425,1720644644518,-151.0,0.0003259,7]
[331689426,1720644644527,-167.763916,0.0003259,7]
[331689427,1720644644537,-167.763916,0.0003259,7]
[331689428,1720644644546,-478.091984,0.0003259,7]
[331689429,1720644644555,-478.091984,0.0003259,7]
[331689430,1720644644565,-2532.894488,0.0003259,7]
[331689431,1720644644574,-2532.894488,0.0003259,7]
[331689432,1720644644583,-759.409678,0.0003259,7]
[331689433,1720644644592,-227.836502,0.0003259,7]
[331689434,1720644644602,-3000.0,0.000326,12]
[331689435,1720644644612,-153.0,0.00032603,2]
[331689436,1720644644621,-153.0,0.00032603,2]
[331689437,1720644644630,-153.0,0.00032603,2]
[331689438,1720644644639,-153.0,0.00032603,2]
[331689439,1720644644649,-153.0,0.00032603,2]
[331689440,1720644644660,-153.0,0.00032603,2]
[331689441,1720644644670,-3000.0,0.0003261,12]
[331689442,1720644644680,-262.616,0.00032611,2]
[331689443,1720644644689,-1406.0,0.00032611,2]
[331689444,1720644644698,-3000.0,0.0003262,12]
[331689445,1720644644708,-3000.0,0.0003263,12]
[331689446,1720644644717,-3000.0,0.0003264,12]
[331689447,1720644644726,-3000.0,0.0003265,12]
[331689448,1720644644736,-3000.0,0.0003266,12]
[331689449,1720644644745,-3000.0,0.0003267,13]
[331689450,1720644644754,-3000.0,0.0003268,13]
[331689451,1720644644763,-3000.0,0.0003269,13]
[331689452,1720644644773,-3000.0,0.000327,13]
[331689453,1720644644782,-3000.0,0.0003271,13]
[331689454,1720644644791,-3000.0,0.0003272,13]
[331689455,1720644644800,-3000.0,0.0003273,13]
[331689456,1720644644810,-3000.0,0.0003274,13]
[331689457,1720644644820,-3468.538006,0.0003274,7]
[331689458,1720644644830,-3468.538006,0.0003274,7]
[331689459,1720644644839,-207.382923,0.0003274,7]
[331689460,1720644644848,-933.15827,0.0003274,7]
[331689461,1720644644857,-797.963113,0.0003274,7]